[Event "Austrian Bundesliga 2023-24"]
[Site "Austria"]
[Date "2024.03.20"]
[Round "7.24"]
[White "Bacrot, Etienne"]
[Black "Borhy, Marcell"]
[Result "1-0"]
[ECO "A07"]
[WhiteElo "2680"]
[BlackElo "2370"]
[Annotator "TA"]
[PlyCount "81"]
[EventDate "2023.10.21"]
[EventType "team-tourn"]
[EventCountry "AUT"]
[SourceTitle "playchess.com"]
[Source "ChessBase"]
[SourceQuality "1"]
[TimeControl "40/5400+30:1800+30"]

{[%evp 9,81,16,29,19,20,2,7,9,2,0,12,0,22,23,23,8,16,11,37,16,16,6,29,25,36,11,10,0,0,-12,0,0,0,0,0,0,0,0,0,0,0,-18,-12,-26,0,-33,0,-16,-10,-39,-43,-61,0,-13,0,-29,0,0,0,0,0,0,0,-9,0,0,235,258,260,245,253,227,229,245]} 1. Nf3 {[%emt 0:00:03]} d5 {[%emt 0:00:11]} 2. g3 {[%emt 0:00:05]} Nf6 {[%emt 0:01:16]} 3. Bg2 {[%emt 0:00:07]} c6 {[%emt 0:00:37]} 4. O-O {[%emt 0:00:15]} Bg4 {[%emt 0:00:14]} 5. h3 {[%emt 0:00:39]} Bh5 {[%emt 0:02:10] [#]} 6. c4 $1 {[%emt 0:04:48]} e6 {[%emt 0:01:02]} (6... Bxf3 7. Bxf3) 7. d3 {[%emt 0:01:17]} dxc4 {[%emt 0:09:49]} 8. dxc4 {[%emt 0:00:13] Die Stellung ist ausgeglichen.} Nbd7 {[%emt 0:01:53]} 9. Bf4 {[%emt 0:11:27]} Be7 {[%emt 0:10:28]} 10. Nc3 {[%emt 0:03:22]} Bxf3 {[%emt 0:09:26]} 11. Bxf3 {[%emt 0:04:21]} e5 {[%emt 0:01:40]} 12. Bd2 {[%emt 0:02:41]} O-O {[%emt 0:00:27]} 13. Qc2 {[%emt 0:02:08]} Ne8 {[%emt 0:08:59][%cal Bf6e8,Be8g7,Bg7e6][%mdl 32]} 14. Rfd1 {[%emt 0:09:42]} f5 {[%emt 0:04:35]} 15. Bg2 {[%emt 0:04:09]} Qc7 {[%emt 0:04:49] [#]} 16. b4 $1 {[%emt 0:01:20][%cal Bb2b4,Bb4b5][%mdl 32]} g6 {[%emt 0:02:52]} (16... Bxb4 $2 {verliert.} 17. Nb5 cxb5 18. Bxb4 $18) (16... e4 17. Rab1) 17. b5 {[%emt 0:07:13] Und jetzt bxc6 wäre schön.} Ng7 {[%emt 0:01:38]} 18. Rab1 {[%emt 0:08:12]} Ne6 {[%emt 0:03:43]} 19. Be3 {[%emt 0:02:44]} e4 {[%emt 0:04:50]} (19... Ndc5 {vereinfacht} 20. Na4 Rae8 21. Nxc5 Bxc5 22. Bxc5 Nxc5 23. bxc6 bxc6 24. h4 e4) 20. bxc6 {[%emt 0:07:59]} bxc6 {[%emt 0:00:06]} 21. Nxe4 {[%emt 0:00:04]} fxe4 {[%emt 0:00:16]} 22. Qxe4 {[%emt 0:00:06]} Ndc5 {[%emt 0:01:51]} 23. Qxc6 {[%emt 0:00:44]} Rac8 {[%emt 0:02:47]} 24. Qxc7 {[%emt 0:01:52]} Nxc7 {[%emt 0:03:27]} 25. Bf4 {[%emt 0:00:06]} N7e6 {[%emt 0:05:56]} 26. Bh6 {[%emt 0:03:31]} Rfd8 {[%emt 0:03:27]} 27. Bd5 {[%emt 0:02:39]} Kf7 {[%emt 0:03:38]} 28. Bd2 {[%emt 0:00:32]} Rd6 {[%emt 0:02:02]} 29. Bb4 {[%emt 0:03:15]} Rb6 {[%emt 0:04:02] Zielt auf ...Rcb8 ab.} 30. Ba5 {[%emt 0:00:07]} Rxb1 {[%emt 0:02:58]} (30... Ra6 $1 $15 {sieht stärker aus.} 31. Bd2 (31. Rb5 Kf8 $15) 31... Ke8 (31... Rxa2 32. Ra1 $17)) 31. Rxb1 $11 {[%emt 0:00:29]} Kf8 {[%emt 0:01:26]} 32. e4 {[%emt 0:02:40][%cal Be2e4,Be4e5,Be5e6][%mdl 32]} Nc7 {[%emt 0:00:51] ...Nxd5 ist eine echte Drohung.} 33. e5 {[%emt 0:04:39]} Bd8 {[%emt 0:01:33]} 34. Bb4 {[%emt 0:00:09]} Be7 {[%emt 0:00:16]} 35. Bd2 {[%emt 0:01:22]} Nd7 {[%emt 0:01:20][%cal Oc7d5]} 36. Bh6+ {[%emt 0:04:10] Ein starkes Läuferpaar.} Ke8 {[%emt 0:00:01][%cal Oc7d5] Droht ...Nxd5! und aus.} 37. e6 {[%emt 0:00:05] Bb7 wäre nun fies.} Ne5 $2 {[%emt 0:01:37] [#]} (37... Nb8 $1 $11 {und Schwarz ist OK.}) 38. Bb7 $1 $18 {[%emt 0:03:20][%mdl 1024] Weiss hat starke Kompensation.} Rd8 {[%emt 0:00:01] [#]} 39. f4 $1 {[%emt 0:00:59][%cal Bf2f4,Bf4e5][%mdl 32]} Bc5+ {[%emt 0:00:31]} ({Schlechter ist} 39... Nxc4 40. Bc6+) 40. Kh1 {[%emt 0:00:00]} Rd3 {[%emt 0:00:00]} 41. fxe5 {[%emt 0:02:25] Gewichteter Fehlerwert: Weiß=0.09 (makellos) /Schwarz=0.15 (sehr präzise) .  Verlustzug:     	---       	Schwarz=1     Fehler:       	---       	Schwarz=1     Ungenau:       	Weiß=3     	Schwarz=4     OK:         	Weiß=9     	Schwarz=13    Bester:       	Weiß=2     	---        Stark:        	Weiß=2     	---} 1-0

[Event "Austrian Bundesliga 2023-24"]
[Site "Austria"]
[Date "2024.03.20"]
[Round "7.25"]
[White "Michalik, Peter"]
[Black "Dragnev, Valentin"]
[Result "1/2-1/2"]
[ECO "C88"]
[WhiteElo "2562"]
[BlackElo "2575"]
[Annotator "TA"]
[PlyCount "81"]
[EventDate "2023.10.21"]
[EventType "team-tourn"]
[EventCountry "AUT"]
[SourceTitle "playchess.com"]
[Source "ChessBase"]
[SourceQuality "1"]
[TimeControl "40/5400+30:1800+30"]

{[%evp 18,81,31,22,31,0,7,0,0,0,0,0,0,0,0,0,0,-21,0,0,4,-4,0,-9,-13,-8,-9,-12,-8,-31,-12,-29,-22,-29,-21,-31,-37,-66,-54,-54,-29,-35,-31,-19,-25,-22,0,-6,-14,-16,0,-22,0,0,0,0,0,0,0,0,0,-12,-8,-8,-8,-8]} 1. e4 {[%emt 0:00:03]} e5 {[%emt 0:00:13]} 2. Nf3 {[%emt 0:00:06]} Nc6 {[%emt 0:00:11]} 3. Bb5 {[%emt 0:00:08]} a6 {[%emt 0:00:06]} 4. Ba4 {[%emt 0:00:06]} Nf6 {[%emt 0:00:09]} 5. O-O {[%emt 0:00:07]} Be7 {[%emt 0:00:23]} 6. Re1 {[%emt 0:00:42]} b5 {[%emt 0:00:18]} 7. Bb3 {[%emt 0:00:05]} O-O {[%emt 0:00:32]} 8. a4 {[%emt 0:01:28]} Bb7 {[%emt 0:00:26]} 9. d3 {[%emt 0:00:28]} d6 {[%emt 0:00:22]} 10. Nbd2 {[%emt 0:01:40]} Nd7 {[%emt 0:00:46]} 11. Nf1 {[%emt 0:01:20]} Nc5 {[%emt 0:00:23]} 12. axb5 {[%emt 0:00:07]} axb5 {[%emt 0:00:06]} 13. Rxa8 {[%emt 0:00:05]} Qxa8 {[%emt 0:00:09]} 14. Bd5 {[%emt 0:00:06]} Nd8 {[%emt 0:00:48]} 15. Bxb7 {[%emt 0:02:00]} Qxb7 {[%emt 0:00:03]} 16. Ng3 {[%emt 0:01:41]} Nde6 {[%emt 0:00:17]} 17. c3 {[%emt 0:06:47]} b4 {[%emt 0:24:51]} 18. d4 {[%emt 0:00:21]} Nd7 {[%emt 0:00:29]} 19. Qa4 {[%emt 0:10:05][%csl LRb4,LRd7]} Rd8 {[%emt 0:01:20]} 20. Be3 {[%emt 0:01:29]} (20. Qxb4 Qxb4 21. cxb4 exd4 $16) 20... bxc3 {[%emt 0:05:05]} 21. bxc3 {[%emt 0:00:10]} g6 {[%emt 0:01:06]} 22. h4 {[%emt 0:02:12]} h5 {[%emt 0:01:33]} 23. Rd1 {[%emt 0:05:28]} Bf6 {[%emt 0:07:01]} 24. Qc2 {[%emt 0:08:28]} Rb8 {[%emt 0:01:59][%cal Bd8b8,Bb8b2,Bb2c2][%mdl 32]} 25. Nf1 {[%emt 0:00:19]} Qb2 {[%emt 0:03:47]} 26. Qc1 {[%emt 0:02:26]} Qa2 {[%emt 0:08:12]} 27. Rd2 {[%emt 0:04:28]} Qa8 {[%emt 0:04:20]} 28. Qc2 {[%emt 0:00:27]} Qa1 {[%emt 0:00:32]} 29. Rd1 {[%emt 0:00:38] Verhindert Rb1.} Rb2 {[%emt 0:05:14]} 30. Rxa1 {[%emt 0:03:53]} Rxc2 {[%emt 0:00:33]} 31. Ra3 {[%emt 0:00:05]} Nf4 {[%emt 0:20:33] Die Stellung ist ausgeglichen.} 32. Bxf4 {[%emt 0:02:27]} exf4 {[%emt 0:00:02]} 33. g3 $1 {[%emt 0:01:19]} fxg3 {[%emt 0:01:41]} 34. fxg3 {[%emt 0:01:09]} Kg7 {[%emt 0:03:51]} 35. Ne3 {[%emt 0:02:01]} Re2 {[%emt 0:02:04]} 36. Nd5 {[%emt 0:01:02]} c6 {[%emt 0:03:31]} 37. Nxf6 {[%emt 0:01:19]} Nxf6 {[%emt 0:00:31]} 38. e5 {[%emt 0:00:05]} Ne4 {[%emt 0:01:22]} 39. c4 {[%emt 0:00:50]} dxe5 {[%emt 0:01:26]} (39... Nxg3 $2 {verliert.} 40. exd6 Re8 41. Ra6 $18) 40. Nxe5 {[%emt 0:00:00]} c5 {[%emt 0:00:00]} 41. Ra7 {[%emt 0:05:30] Gewichteter Fehlerwert: Weiß=0.07 (makellos) /Schwarz=0.05 (makellos) .  Ungenau:       	Weiß=1     	---        OK:         	Weiß=12    	Schwarz=15    Bester:       	Weiß=2     	---        Stark:        	Weiß=1     	---} 1/2-1/2

[Event "Austrian Bundesliga 2023-24"]
[Site "Austria"]
[Date "2024.03.20"]
[Round "7.26"]
[White "Blohberger, Felix"]
[Black "Vogel, Roven"]
[Result "0-1"]
[ECO "B52"]
[WhiteElo "2531"]
[BlackElo "2521"]
[Annotator "TA"]
[PlyCount "84"]
[EventDate "2023.10.21"]
[EventType "team-tourn"]
[EventCountry "AUT"]
[SourceTitle "playchess.com"]
[Source "ChessBase"]
[SourceQuality "1"]
[TimeControl "40/5400+30:1800+30"]

{[%evp 14,84,20,0,23,17,13,22,28,27,33,6,16,10,19,2,19,0,4,0,21,35,23,21,41,0,0,0,0,-9,-11,-51,-64,-72,-74,-55,-60,-60,-55,-75,-66,-120,-121,-123,-117,-108,-120,-143,-144,-165,-166,-166,-169,-163,-162,-171,-159,-227,-218,-256,-265,-387,-363,-386,-384,-368,-247,-715,-703,-725,-718,-688,-681]} 1. e4 {[%emt 0:00:02]} c5 {[%emt 0:00:35]} 2. Nf3 {[%emt 0:00:04]} d6 {[%emt 0:00:08]} 3. Bb5+ {[%emt 0:00:06]} Bd7 {[%emt 0:00:07]} 4. Bxd7+ {[%emt 0:00:06]} Nxd7 {[%emt 0:00:05]} 5. O-O {[%emt 0:00:11]} Ngf6 {[%emt 0:00:04]} 6. Qe2 {[%emt 0:01:08]} e6 {[%emt 0:00:35]} 7. d4 {[%emt 0:02:19]} cxd4 {[%emt 0:01:47]} 8. Nxd4 {[%emt 0:02:32]} a6 {[%emt 0:03:35]} 9. c4 {[%emt 0:01:26]} Rc8 {[%emt 0:00:53]} 10. b3 {[%emt 0:01:15]} Be7 {[%emt 0:04:52][%cal Bf8e7,Be7d8,Bd8a5][%mdl 32] The position is equal.} 11. Bb2 {[%emt 0:04:08]} Qb6 {[%emt 0:03:59]} 12. Nf3 {[%emt 0:06:29]} O-O {[%emt 0:01:16]} 13. Nc3 {[%emt 0:00:56]} Qc5 {[%emt 0:08:40]} 14. Rfe1 {[%emt 0:07:27]} Bd8 {[%emt 0:09:05]} 15. h3 {[%emt 0:11:43]} Ba5 {[%emt 0:01:58]} 16. a3 {[%emt 0:08:23] And now b4 would win.} Qh5 {[%emt 0:06:12]} 17. Rad1 {[%emt 0:02:35]} Bc7 {[%emt 0:00:56]} 18. b4 {[%emt 0:03:36][%cal Oc4c5]} Rfd8 {[%emt 0:02:22]} 19. c5 {[%emt 0:07:13]} dxc5 {[%emt 0:03:13]} 20. e5 {[%emt 0:00:44]} Ne8 {[%emt 0:03:32]} 21. Qe4 {[%emt 0:07:58]} Rb8 {[%emt 0:07:36]} 22. Rd3 {[%emt 0:25:36]} cxb4 {[%emt 0:06:11]} 23. axb4 {[%emt 0:00:24]} Qg6 {[%emt 0:00:35]} 24. Qe2 {[%emt 0:01:51]} Nb6 {[%emt 0:02:56]} 25. Red1 {[%emt 0:00:05]} Rxd3 {[%emt 0:01:30]} 26. Rxd3 {[%emt 0:00:05]} Rd8 $36 {[%emt 0:05:29][%mdl 2048] Black is pushing. Black converts the advantage convincingly.} 27. Re3 {[%emt 0:00:05]} (27. Rxd8 $15 Bxd8 28. b5) 27... Nd5 $17 {[%emt 0:03:25]} 28. Re4 {[%emt 0:00:55]} Nxc3 {[%emt 0:05:31]} 29. Bxc3 {[%emt 0:00:06]} Bb6 {[%emt 0:00:07]} 30. Bd2 {[%emt 0:02:01]} h6 {[%emt 0:02:03]} 31. Kh2 {[%emt 0:01:41]} Nc7 {[%emt 0:02:59]} 32. Rg4 {[%emt 0:00:14] [#]} Qh7 {[%emt 0:00:26]} 33. Be3 {[%emt 0:01:01]} Bxe3 {[%emt 0:00:22]} 34. Qxe3 {[%emt 0:00:10]} Nd5 {[%emt 0:00:10]} 35. Qd4 {[%emt 0:02:43]} (35. Qc1 $17) 35... Qc2 $19 {[%emt 0:01:20]} 36. Rg3 {[%emt 0:00:02]} Rc8 {[%emt 0:01:30]} 37. Qg4 {[%emt 0:00:42]} (37. Ne1 {was called for.} Qc4 38. Qd2) 37... g6 {[%emt 0:02:01] Active counter play!} (37... Qxf2 38. Qxg7#) 38. Qh4 {[%emt 0:00:40]} Kg7 {[%emt 0:01:17]} (38... Qxf2 $2 39. Rxg6+ (39. Qxh6 Rc4 $19) 39... fxg6 40. Qxf2 $18) 39. Nd4 {[%emt 0:00:01]} Qd2 {[%emt 0:04:06][%cal Oc8c3]} (39... Qxf2 $2 40. Rxg6+ Kxg6 41. Qxf2 $18) 40. Nxe6+ $2 {[%emt 0:00:00] [#]} (40. Qe4 Re8 (40... Qxb4 $2 {too greedy.} 41. Nxe6+ Kh7 42. Qxd5 $18) 41. b5) 40... fxe6 {[%emt 0:00:00] Black is clearly winning.} 41. Qg4 {[%emt 0:01:24]} Nf4 {[%emt 0:05:25]} ({Weaker is} 41... Qxb4 42. Qxg6+ (42. Qxe6 Ne7 $11) 42... Kf8 43. Qg8+ Ke7 44. Rg7#) 42. Rf3 {[%emt 0:03:00]} Rf8 {[%emt 0:03:30] Weighted Error Value: White=0.36/Black=0.09 (flawless) .  Mistake:       	White=4     	---        Inaccurate:     	White=3     	Black=1      OK:         	White=7     	Black=20     Best:        	White=1     	Black=2} 0-1

[Event "Austrian Bundesliga 2023-24"]
[Site "Austria"]
[Date "2024.03.20"]
[Round "7.27"]
[White "Votava, Jan"]
[Black "Peyrer, Konstantin"]
[Result "1/2-1/2"]
[ECO "A06"]
[WhiteElo "2441"]
[BlackElo "2434"]
[Annotator "TA"]
[PlyCount "87"]
[EventDate "2023.10.21"]
[EventType "team-tourn"]
[EventCountry "AUT"]
[SourceTitle "playchess.com"]
[Source "ChessBase"]
[SourceQuality "1"]
[TimeControl "40/5400+30:1800+30"]

{[%evp 13,87,10,6,0,0,0,19,-24,-20,-24,-10,-18,-12,-15,-10,-13,0,0,0,0,0,0,0,0,0,-6,0,0,0,0,0,0,6,0,0,0,1,0,15,0,14,8,19,11,35,0,0,0,0,0,0,0,0,-14,-18,-26,-10,-26,-20,-18,-14,-19,-8,-20,0,0,0,0,0,0,0,0,0,0,0,0]} 1. Nf3 {[%emt 0:00:05]} Nf6 {[%emt 0:00:28]} 2. c4 {[%emt 0:00:09]} e6 {[%emt 0:00:08]} 3. b3 {[%emt 0:00:33]} d5 {[%emt 0:00:48]} 4. e3 {[%emt 0:00:23]} c5 {[%emt 0:03:36]} 5. Bb2 {[%emt 0:00:26]} Nc6 {[%emt 0:00:10]} 6. cxd5 {[%emt 0:00:45]} exd5 {[%emt 0:00:12]} 7. Bb5 {[%emt 0:10:31]} Bd7 {[%emt 0:04:59]} 8. O-O {[%emt 0:02:08]} Bd6 {[%emt 0:01:35]} 9. d4 {[%emt 0:07:29]} cxd4 {[%emt 0:00:11]} 10. exd4 {[%emt 0:09:15]} O-O {[%emt 0:00:17]} 11. Nc3 {[%emt 0:02:36]} Bg4 {[%emt 0:24:16]} 12. Bxc6 {[%emt 0:14:10]} bxc6 {[%emt 0:01:13]} 13. h3 {[%emt 0:00:07]} Bxf3 {[%emt 0:05:57]} 14. Qxf3 {[%emt 0:00:41]} Qd7 {[%emt 0:00:09]} 15. Bc1 {[%emt 0:17:14]} Rfe8 {[%emt 0:05:39]} 16. Bf4 {[%emt 0:01:54]} Ne4 {[%emt 0:00:25]} 17. Bxd6 {[%emt 0:03:58]} Qxd6 {[%emt 0:02:39]} 18. Rfe1 {[%emt 0:01:01]} Ng5 {[%emt 0:04:00][%cal Be4g5,Bg5e6,Be6f4][%mdl 32]} 19. Qd3 {[%emt 0:07:07]} Ne6 {[%emt 0:06:41]} 20. Re3 {[%emt 0:09:30]} Nf4 {[%emt 0:05:49]} 21. Qd2 {[%emt 0:01:39]} Rxe3 {[%emt 0:01:08]} 22. Qxe3 {[%emt 0:02:28]} h6 {[%emt 0:02:15]} 23. Ne2 {[%emt 0:02:56]} Ne6 {[%emt 0:01:37]} 24. Rc1 {[%emt 0:00:07]} Rc8 {[%emt 0:07:18]} 25. g3 {[%emt 0:01:47]} Qd7 {[%emt 0:09:25]} 26. h4 {[%emt 0:00:14]} Qd6 {[%emt 0:00:38]} 27. Kg2 {[%emt 0:00:16]} Kf8 {[%emt 0:01:08]} 28. Rc2 {[%emt 0:00:15]} Qb4 {[%emt 0:01:47]} 29. Qc3 {[%emt 0:01:03]} Qxc3 {[%emt 0:00:09]} 30. Rxc3 $11 {[%emt 0:00:07][%mdl 4096] Endgame. KRN-KRN} Ke7 {[%emt 0:01:31]} 31. Kf3 {[%emt 0:00:33]} Kd6 {[%emt 0:01:35]} 32. Ke3 {[%emt 0:01:10]} g5 {[%emt 0:02:04]} 33. hxg5 {[%emt 0:01:49]} hxg5 {[%emt 0:00:08]} 34. Rc1 {[%emt 0:02:11]} Re8 {[%emt 0:02:14] [#] Threatens to win with ...Nf4+.} 35. Kd3 {[%emt 0:00:23]} Rh8 {[%emt 0:00:28]} 36. b4 {[%emt 0:00:54] The position is equal.} Rh6 {[%emt 0:02:44]} 37. Rf1 {[%emt 0:00:28]} f5 {[%emt 0:01:23]} 38. a4 {[%emt 0:00:25]} a6 {[%emt 0:00:10]} 39. Rb1 {[%emt 0:00:36]} Rh2 {[%emt 0:00:54]} 40. Ke3 {[%emt 0:00:00]} f4+ {[%emt 0:00:00]} 41. gxf4 {[%emt 0:11:23]} gxf4+ {[%emt 0:01:26]} 42. Nxf4 {[%emt 0:00:09]} Nxf4 {[%emt 0:00:04]} 43. Kxf4 {[%emt 0:00:04]} Rxf2+ {[%emt 0:00:06]} 44. Ke3 {[%emt 0:00:05] A rather calm draw.   Weighted Error Value: White=0.05 (flawless) /Black=0.05 (flawless) .  Inaccurate:     	White=2     	---        OK:         	White=14    	Black=11     Best:        	White=1     	Black=1} 1/2-1/2

[Event "Austrian Bundesliga 2023-24"]
[Site "Austria"]
[Date "2024.03.20"]
[Round "7.28"]
[White "Balint, Peter"]
[Black "Maiwald, Jens-Uwe"]
[Result "1-0"]
[ECO "B06"]
[WhiteElo "2345"]
[BlackElo "2438"]
[Annotator "RC"]
[PlyCount "61"]
[EventDate "2023.10.21"]
[EventType "team-tourn"]
[EventCountry "AUT"]
[SourceTitle "playchess.com"]
[Source "ChessBase"]
[SourceQuality "1"]
[TimeControl "40/5400+30:1800+30"]

1. e4 {[%emt 0:00:04]} g6 {[%emt 0:00:28]} 2. d4 {[%emt 0:00:17]} Bg7 {[%emt 0:00:07]} 3. Nc3 {[%emt 0:00:29]} d6 {[%emt 0:00:20]} 4. Be3 {[%emt 0:02:51]} c6 {[%emt 0:01:08]} 5. Qd2 {[%emt 0:01:44]} Nd7 {[%emt 0:07:21]} 6. f3 {[%emt 0:08:19]} b5 {[%emt 0:00:31]} 7. h4 {[%emt 0:16:48]} Ngf6 {[%emt 0:13:46]} 8. Bh6 {[%emt 0:12:47]} Bxh6 {[%emt 0:04:03]} 9. Qxh6 {[%emt 0:00:46]} b4 {[%emt 0:04:50]} 10. Nd1 {[%emt 0:04:07]} Qb6 {[%emt 0:01:02]} 11. Qd2 {[%emt 0:04:26]} c5 {[%emt 0:15:04]} 12. dxc5 {[%emt 0:08:12]} Nxc5 {[%emt 0:00:33]} 13. Ne3 {[%emt 0:00:51]} Be6 {[%emt 0:01:08]} 14. Ne2 {[%emt 0:00:54]} Rc8 {[%emt 0:02:45]} 15. Nd4 {[%emt 0:02:04]} h5 {[%emt 0:11:21]} 16. Nxe6 {[%emt 0:05:53]} Nxe6 {[%emt 0:10:18]} 17. O-O-O {[%emt 0:13:36]} Nc5 {[%emt 0:11:41]} 18. Bc4 {[%emt 0:04:42]} a5 {[%emt 0:01:09]} 19. Kb1 {[%emt 0:02:43]} Ncd7 {[%emt 0:00:41]} 20. Qe2 {[%emt 0:02:04]} Kf8 {[%emt 0:01:37]} 21. Bb5 {[%emt 0:05:36]} Nc5 {[%emt 0:02:20]} 22. Rhf1 {[%emt 0:01:28]} e6 {[%emt 0:03:07]} 23. Rd4 {[%emt 0:00:47]} Kg7 {[%emt 0:00:37]} 24. Rfd1 {[%emt 0:00:07]} Rcd8 {[%emt 0:03:31]} 25. Bc4 {[%emt 0:00:54]} Rhe8 {[%emt 0:02:32]} 26. Qd2 {[%emt 0:00:16]} e5 {[%emt 0:00:26]} 27. Rxd6 {[%emt 0:00:12]} Rxd6 {[%emt 0:01:00]} 28. Qxd6 {[%emt 0:00:04]} Qa7 {[%emt 0:00:09]} 29. Qc6 {[%emt 0:00:58]} Ncxe4 {[%emt 0:00:37]} 30. fxe4 {[%emt 0:00:59]} Qxe3 {[%emt 0:00:03]} 31. Rf1 {[%emt 0:00:28]} 1-0

[Event "Austrian Bundesliga 2023-24"]
[Site "Austria"]
[Date "2024.03.20"]
[Round "7.29"]
[White "Platzgummer, Fabian"]
[Black "Steindl, Johannes"]
[Result "1-0"]
[ECO "B70"]
[WhiteElo "2304"]
[BlackElo "2302"]
[Annotator "TA"]
[PlyCount "79"]
[EventDate "2023.10.21"]
[EventType "team-tourn"]
[EventCountry "AUT"]
[SourceTitle "playchess.com"]
[Source "ChessBase"]
[SourceQuality "1"]
[TimeControl "40/5400+30:1800+30"]

{[%evp 19,79,8,24,12,51,44,77,71,66,56,98,91,95,65,72,61,90,107,134,124,185,129,103,91,79,82,80,62,100,101,102,105,101,107,105,104,151,174,163,116,126,121,128,109,123,133,940,931,641,404,1132,1018,1974,1515,29993,1059,29984,29985,29985,29986,29989,29990]} 1. Nf3 {[%emt 0:00:05]} g6 {[%emt 0:00:09]} 2. e4 {[%emt 0:00:20]} c5 {[%emt 0:00:04]} 3. d4 {[%emt 0:00:15]} cxd4 {[%emt 0:00:04]} 4. Nxd4 {[%emt 0:00:08]} Nf6 {[%emt 0:00:06]} 5. Nc3 {[%emt 0:01:58]} d6 {[%emt 0:00:04]} 6. g3 {[%emt 0:00:30]} Nc6 {[%emt 0:01:11]} 7. Nde2 {[%emt 0:01:48]} Bg7 {[%emt 0:03:00]} 8. Bg2 {[%emt 0:00:21]} O-O {[%emt 0:00:10]} 9. O-O {[%emt 0:00:10]} Be6 {[%emt 0:02:18]} 10. h3 {[%emt 0:04:10]} Rc8 {[%emt 0:07:59]} 11. Be3 {[%emt 0:07:15]} Na5 {[%emt 0:13:43]} 12. b3 {[%emt 0:10:27][%cal Oa1c1]} Qd7 {[%emt 0:00:52]} 13. Kh2 {[%emt 0:02:21] White is better.} b5 {[%emt 0:00:31]} 14. Rc1 {[%emt 0:04:49]} b4 {[%emt 0:12:57]} 15. Nd5 {[%emt 0:00:38]} Nc6 {[%emt 0:00:24]} 16. c4 {[%emt 0:04:58]} bxc3 {[%emt 0:03:55]} 17. Nexc3 {[%emt 0:00:48]} Rfe8 {[%emt 0:00:21]} 18. Nf4 {[%emt 0:06:45] White is more active.} Nb4 {[%emt 0:08:54]} 19. Qd2 {[%emt 0:03:03]} Rc7 {[%emt 0:03:08]} (19... Red8 $16 {was called for.} 20. Nxe6 fxe6) 20. Ncd5 {[%emt 0:15:00]} (20. Nce2 $18 Rb8 21. Rxc7 Qxc7 22. a3) 20... Bxd5 $16 {[%emt 0:03:38]} 21. Nxd5 {[%emt 0:06:25]} Nbxd5 {[%emt 0:04:43]} 22. exd5 {[%emt 0:00:07]} Rec8 {[%emt 0:01:14][%cal Be8c8,Bc8c7,Bc7b7][%mdl 32]} 23. Rxc7 {[%emt 0:09:07]} Rxc7 {[%emt 0:00:04]} 24. Rc1 {[%emt 0:00:21]} h5 {[%emt 0:00:16][%cal Bh7h5,Bh5h4][%mdl 32]} 25. Rc6 {[%emt 0:05:52]} Rb7 {[%emt 0:04:38]} 26. Qc2 {[%emt 0:00:52]} Kh7 {[%emt 0:03:04]} 27. Bf3 {[%emt 0:01:34]} a5 {[%emt 0:00:37]} (27... Bh6 $142) 28. Bb6 {[%emt 0:02:54] A strong pair of Bishops.} h4 {[%emt 0:05:13]} 29. g4 {[%emt 0:01:49]} (29. gxh4 e6 $16) (29. Bxa5 $18 hxg3+ 30. Kxg3 (30. fxg3 Rb8 $16)) 29... e6 {[%emt 0:04:32]} 30. Rc7 $36 {[%emt 0:05:25][%mdl 2048] Keeping Black busy.} (30. Bxa5 Nxd5 31. Bxd5 exd5 $11) 30... Rxc7 {[%emt 0:00:04]} 31. Qxc7 {[%emt 0:00:04]} Qb5 {[%emt 0:00:19]} 32. dxe6 {[%emt 0:01:28]} (32. Bxa5 $2 Qf1 (32... Nxd5 33. Bxd5 Qxd5 34. Bb6 $11) 33. Qxd6 Qxf2+ 34. Bg2 Nxd5 $19) (32. Qxd6 Nd7 (32... exd5 33. Kg2 $16) (32... Nxd5 33. Bxd5 exd5 34. Qc5 $11) 33. Kg2 Nxb6 $17 (33... Qxb6 $2 34. Qxd7 Kg8 35. dxe6 $18)) 32... Ne8 $2 {[%emt 0:07:58][%mdl 8192] Black is weak on the light squares. A mistake that costs the game.} (32... fxe6 $16 33. Bxa5 (33. Qxd6 Nd7 $14) 33... Qe5+ 34. Kg1 (34. Kg2 Nd5 $16) 34... Qa1+ 35. Kg2 Qxa2) 33. Qxf7 $18 {[%emt 0:02:27][%cal Oh2g2] [#] And now Kg2! would win.} Qxb6 {[%emt 0:00:05]} 34. Be4 {[%emt 0:00:36]} (34. Qxe8 {is a self mate.} Qxf2+ 35. Bg2 Be5+ (35... Qxa2 36. Qe7 $11) 36. Kh1 Qe1+) 34... Nf6 {[%emt 0:00:09]} 35. Bxg6+ {[%emt 0:01:16]} Kh6 {[%emt 0:01:51]} 36. Kg1 {[%emt 0:00:23]} Qd4 {[%emt 0:08:14] Against Bd3} 37. Bf5 {[%emt 0:00:52]} (37. Bc2 $142 Qd1+ 38. Bxd1 Kh7 39. Bc2+ Kh8 40. e7 Bh6 41. e8=Q+ (41. Qxf6+ Kg8 42. e8=Q+ Bf8 43. Qfxf8#) 41... Bf8 42. Qfxf8+ Ng8 43. Qxg8#) 37... Qd1+ {[%emt 0:00:46]} 38. Kh2 {[%emt 0:00:21][%csl Gf5][%cal Rf7g6] White mates.} Nxg4+ {[%emt 0:00:37]} 39. Bxg4 {[%emt 0:00:20][%csl Gg4][%cal Rf7h5]} Be5+ {[%emt 0:00:06]} 40. Kg2 {[%emt 0:00:00] Weighted Error Value: White=0.12 (very precise) /Black=0.61.  Loses game:     	---       	Black=1      Mistake:       	White=2     	Black=2      Inaccurate:     	White=1     	Black=6      OK:         	White=9     	Black=7      Best:        	White=2     	Black=4} 1-0